Cogmind - Beta 13 @@@ ROGUE MODE // 2024.05.10 @ 22:20:03 Player: GayPredator Result: Destroyed by D-53 Grenadier with Mini Grenade Launcher Performance ------------- Evolutions (0) 0 Regions Visited (2) 400 Robots Destroyed (15) 75 Value Destroyed (438) 438 Prototype IDs (2) 40 Alien Tech Used (0) 0 Bonus (-28) -28 TOTAL SCORE: 925 Bonus ------- Follower Combat Kills 42 Friendly Fire -70 Cogmind --------- Core Integrity 0/250 Matter 227/300 Energy 100/100 System Corruption 0% Temperature Cool (4) Movement Rolling (120) Ox2 Location -10/Mines Parts ------- > --- POWER (1) -------- (None) > --- PROPULSION (2) --- Armored Wheel Armored Wheel > --- UTILITY (2) ------ High-capacity Storage Unit Propulsion Shielding > --- WEAPON (2) ------- Improved Light Cannon Improved Light Cannon > --- INVENTORY (20) --- Light Nuclear Core Armored Wheel Armored Wheel Improved Heat Sink High-capacity Storage Unit Terrain Scanner Seismic Detector Targeting Computer ECM Suite Weapon Shielding Light Armor Plating Heavy Assault Rifle Improved Light Cannon Grenade Launcher Datajack Datajack Mining Laser Hammer Peak State ------------ > --- POWER ------------ Improved Ion Engine > --- PROPULSION ------- Armored Wheel Armored Wheel > --- UTILITY ---------- High-capacity Storage Unit Weapon Shielding > --- WEAPON ----------- Improved Light Cannon Improved Light Cannon > --- INVENTORY -------- Ion Engine Light Ion Engine Armored Wheel Armored Wheel Improved Heat Sink High-capacity Storage Unit Terrain Scanner Seismic Detector Targeting Computer ECM Suite Propulsion Shielding Improved Light Cannon Improved Light Cannon Grenade Launcher Datajack Mining Laser Hammer [Rating: 14] Favorites ----------- Power Ion Engine Engine Ion Engine Propulsion Armored Wheel Treads Light Treads Wheel Armored Wheel Utility High-capacity Storage Unit Device Seismic Detector Storage High-capacity Storage Unit Protection Propulsion Shielding Weapon Improved Light Cannon Energy Gun Small Laser Energy Cannon Beam Cannon Ballistic Gun Light Assault Rifle Ballistic Cannon Improved Light Cannon Launcher Grenade Launcher Build | -11 -10 -10 ------- Run | Yrd Mat Min Slots Evolved . | . . . Power . | . . . Propulsion . | . . . Utility . | . . . Weapon . | . . . Parts Attached 24 | 7 10 7 Power 2 | 1 . 1 Engine 2 | 1 . 1 Core . | . . . Reactor . | . . . Propulsion 6 | 2 4 . Treads 2 | 2 . . Leg . | . . . Wheel 4 | . 4 . Hover . | . . . Flight . | . . . Utility 8 | 2 3 3 Device 3 | 1 1 1 Storage 3 | 1 2 . Processor . | . . . Hackware . | . . . Protection 2 | . . 2 Artifact . | . . . Weapon 8 | 2 3 3 Energy Gun 1 | 1 . . Energy Cannon 1 | . 1 . Ballistic Gun 1 | 1 . . Ballistic Cannon 4 | . 2 2 Launcher 1 | . . 1 Special Weapon . | . . . Impact Weapon . | . . . Slashing Weapon . | . . . Piercing Weapon . | . . . Special Melee Weapon . | . . . Unidentified Prototypes . | . . . Parts Lost 3 | . . 3 Power 1 | . . 1 Propulsion . | . . . Utility . | . . . Weapon 2 | . . 2 Highest Loss Streak 3 | . . 3 To Critical Strikes . | . . . Average Slot Usage (%) 99 | . 100 99 Engine 14 | . 14 14 Treads 5 | . 12 . Wheel 22 | . 15 28 Device 5 | . 14 . Storage 14 | . 14 14 Protection 8 | . . 13 Energy Gun 1 | . 4 . Energy Cannon 1 | . 3 . Ballistic Gun 3 | . 8 . Ballistic Cannon 20 | . 11 27 Naked Turns . | . . . Heaviest Build 56 | 13 54 56 Greatest Support 40 | 40 40 24 Greatest Overweight (x) 2 | . 2 2 Average Overweight (x) 1 | . . 2 Largest Inventory Capacity 20 | 8 20 20 Average Capacity 16 | 6 13 20 Most Carried 20 | 5 12 20 Average Carried 12 | 2 8 17 Final Capacity 20 | 8 20 20 Final Carried 18 | 4 12 18 Class Distribution -------------------- 100% | Mutant Dominant Class ---------------- Mutant | -10/Materials Mutant | -10/Mines Resources | -11 -10 -10 ----------- Run | Yrd Mat Min Matter Collected 609 | 275 11 323 Remotely . | . . . Salvage Created 426 | 105 43 278 Parts 25 | 6 3 16 Haulers Intercepted . | . . . Recyclers Shooed 1 | 1 . . Parts Field Recycled . | . . . Retrieved Matter . | . . . Parts Self-Destructed . | . . . Prevented . | . . . Kills | -11 -10 -10 ------- Run | Yrd Mat Min Combat Hostiles Destroyed 15 | . 2 13 Cannons 12 | . 2 10 AOE 3 | . . 3 Classes Destroyed 8 | 2 2 4 Tunneler 1 | 1 . . Recycler 1 | 1 . . Operator 1 | . 1 . Swarmer 4 | . 2 2 Grunt 5 | . . 5 Sentry 2 | . . 2 Demolisher 1 | . . 1 Assembled 3 | . . 3 Best Kill Streak 3 | 2 2 3 Combat Bots Only 3 | . 1 3 Max Kills in Single Turn 2 | 1 1 2 Gunslinging . | . . . Exploded 1 | . . 1 Melee . | . . . Uniques/NPCs Destroyed . | . . . Combat | -11 -10 -10 -------- Run | Yrd Mat Min Hostile Shots Fired 72 | . 26 46 Missed 17 | . 7 10 Damage Taken 908 | . 152 756 Core 251 | . 33 218 Absorbed by Shields . | . . . Redirected to Shielding 56 | . . 56 Core Remaining (%) 100 | 100 . . Volleys Fired 43 | 5 11 27 Largest 2 | 2 2 2 Hottest 80 | 60 80 78 Shots Fired 86 | 10 22 54 Gun 22 | 10 12 . Cannon 61 | . 10 51 Launcher 3 | . . 3 Special . | . . . Kinetic 68 | 5 12 51 Thermal 15 | 5 10 . Explosive 3 | . . 3 Electromagnetic . | . . . Robot Hit Streak 9 | 9 2 3 Robot Miss Streak 6 | . 6 3 Penetration Max . | . . . Secondary Targets . | . . . Shots Hit Robots 39 | 9 7 23 Core Hits 26 | 3 3 20 Critical Kills . | . . . Critical Parts Destroyed . | . . . Critical Strikes 3 | . . 3 Blast 3 | . . 3 Melee Attacks . | . . . Impact . | . . . Slashing . | . . . Piercing . | . . . Sneak Attacks . | . . . Combat Hostiles . | . . . Follow-up Attacks . | . . . Damage Inflicted 879 | 85 125 669 Guns 119 | 85 34 . Cannons 600 | . 91 509 Explosions 160 | . . 160 Melee . | . . . Ramming . | . . . Kinetic 583 | 32 42 509 Thermal 209 | 53 83 73 Explosive 87 | . . 87 Electromagnetic . | . . . Impact . | . . . Slashing . | . . . Piercing . | . . . Highest Corruption . | . . . Average Corruption . | . . . Corruption Purged . | . . . Corruption Blocked . | . . . Overload Shots . | . . . Overflow Damage . | . . . Projectiles . | . . . Explosions . | . . . Melee . | . . . Knockbacks 12 | . . 12 Impact . | . . . Kinetic 8 | . . 8 Secondary 4 | . . 4 Self-Inflicted Damage 20 | . . 20 Shots 1 | . . 1 Rammed . | . . . Targets Rammed . | . . . Kicked . | . . . Crushed . | . . . Highest Temperature 120 | 20 120 120 Average Temperature 38 | 15 40 40 Received Heat Transfer 132 | . . 132 Siege Activations . | . . . Robots Corrupted . | . . . Combat Hostiles . | . . . Parts Fried . | . . . Impact Corruptions . | . . . Robots Melted . | . . . Combat Hostiles . | . . . Parts Melted 3 | 2 1 . Heat Transferred 398 | 125 173 100 Parts Sabotaged . | . . . Parts Stolen . | . . . Parts Stripped . | . . . Power Chain Reactions . | . . . Alert | -11 -10 -10 ------- Run | Yrd Mat Min Peak Influence 368 | 10 104 368 Initial 40 | . 6 40 Average 109 | 2 59 164 Maximum Alert Level 1 | . . 1 Low Security (%) 90 | 100 100 81 Level 1 9 | . . 18 Level 2 . | . . . Level 3 . | . . . Level 4 . | . . . Level 5 . | . . . High Security . | . . . Max Security . | . . . Squads Dispatched 2 | . 2 . Investigation . | . . . Extermination . | . . . Reinforcement 2 | . 2 . Assault . | . . . Garrison . | . . . Intercept . | . . . Searches Triggered . | . . . Construction Impeded . | . . . Haulers Reinforced . | . . . Active Scanning Responses . | . . . Cargo Convoy Interrupts . | . . . Stealth | -11 -10 -10 --------- Run | Yrd Mat Min Distress Signals . | . . . Communications Jammed . | . . . Distress Signals . | . . . Times Spotted 32 | . 8 24 Peak Tracking Total 6 | . 3 6 Tactical Retreats . | . . . Traps | -11 -10 -10 ------- Run | Yrd Mat Min Traps Triggered . | . . . Indirectly . | . . . Trap Hack Attempts . | . . . Triggered . | . . . Disarmed . | . . . Reprogrammed . | . . . Reused . | . . . Traps Extracted . | . . . Installed . | . . . Triggered . | . . . Machines | -11 -10 -10 ---------- Run | Yrd Mat Min Machines Disabled 4 | . 1 3 Max in Single Turn 1 | . 1 1 Machines Repaired . | . . . Machines Dismantled . | . . . Machines Sabotaged . | . . . Overloaded Fab Kills . | . . . Hacking | -11 -10 -10 --------- Run | Yrd Mat Min Machines Accessed 3 | . 3 . Terminals 3 | . 3 . Fabricators . | . . . Repair Stations . | . . . Recycling Units . | . . . Scanalyzers . | . . . Garrison Access . | . . . Total Hacks 8 | . 8 . Successful 7 | . 7 . Failed 1 | . 1 . Catastrophic . | . . . Database Lockouts . | . . . Manual 5 | . 5 . Terminals 8 | . 8 . Fabricators . | . . . Repair Stations . | . . . Recycling Units . | . . . Scanalyzers . | . . . Garrison Access . | . . . Terminal Hacks 4 | . 4 . Prototype ID Bank 1 | . 1 . Terminal Index 1 | . 1 . Alert Level 1 | . 1 . Recall Reinforcements 1 | . 1 . Fabricator Hacks . | . . . Repair Station Hacks . | . . . Recycling Unit Hacks . | . . . Scanalyzer . | . . . Garrison Access Hacks . | . . . Unauthorized Hacks 3 | . 3 . Terminals 3 | . 3 . Botnet 3 | . 3 . Fabricators . | . . . Repair Stations . | . . . Recycling Units . | . . . Scanalyzers . | . . . Garrison Access . | . . . Data Cores Recovered . | . . . Used . | . . . Hacking Detections 3 | . 3 . Full Trace Events . | . . . Feedback Events . | . . . Feedback Blocked . | . . . Robot Schematics Acquired . | . . . Robots Built . | . . . Authchips . | . . . Time . | . . . Total Robot Build Rating . | . . . Part Schematics Acquired . | . . . Parts Built . | . . . Authchips . | . . . Time . | . . . Total Part Build Rating . | . . . Parts Repaired . | . . . Time . | . . . Parts Recycled . | . . . Recycled Matter . | . . . Retrieved Matter . | . . . Retrieved Components . | . . . Parts Scanalyzed . | . . . Part Schematics Acquired . | . . . Parts Damaged . | . . . Bothacking | -11 -10 -10 ------------ Run | Yrd Mat Min Used RIF Installer . | . . . Robots Hacked . | . . . Non-combat . | . . . Combat . | . . . Robot Hacks Applied . | . . . Relay Couplers Released . | . . . Fabnet Peak Effective % . | . . . Robots Rewired . | . . . Allies Hacked . | . . . Hacks Repelled . | . . . Allies | -11 -10 -10 -------- Run | Yrd Mat Min Total Allies 2 | . . 2 Largest Group 2 | . . 2 Highest-Rated Group 36 | . . 36 Highest-Rated Ally 31 | . . 31 Total Orders . | . . . Ally Attacks 14 | . . 14 Total Damage 190 | . . 190 Kills 7 | . . 7 Allies Corrupted . | . . . Allies Melted . | . . . Intel | -11 -10 -10 ------- Run | Yrd Mat Min Robot Analysis Total . | . . . Derelict Logs Recovered 1 | . . 1 Drone Launches . | . . . Drone Recoveries . | . . . Exploration | -11 -10 -10 ------------- Run | Yrd Mat Min Turns Passed 1075 | 110 393 572 Spaces Moved 682 | 51 254 377 Core 2 | 2 . . Treads 145 | 49 96 . Legs . | . . . Wheels 535 | . 158 377 Hover . | . . . Flight . | . . . Fastest Speed 50 | 50 80 120 Average Speed 125 | 155 128 120 Slowest Speed 160 | 160 160 120 Overloaded Moves . | . . . Propulsion Burnouts . | . . . Robots Hopped . | . . . Cave-ins Triggered . | . . . Exploration Rate (%) 38 | 4 54 57 Regions Visited 2 Branch Regions 1 Pre-discovered Areas . | . . . Known Exits Taken . | . . . Unknown Exits Taken 2 | 1 1 . Scrap Searched 1 | . . 1 Spaces Dug . | . . . Terrain Destroyed 28 | . . 28 Melee . | . . . Projectile 3 | . . 3 AOE 25 | . . 25 Terrain Rammed . | . . . Walls Destroyed . | . . . Machines Disabled . | . . . Actions | -11 -10 -10 --------- Run | Yrd Mat Min Total 815 | 71 302 442 Wait 22 | 1 3 18 Move 680 | 50 253 377 Hop . | . . . Pick Up 31 | 7 14 10 Fast Attach 9 | 5 4 . Attach 4 | 2 . 2 Detach . | . . . Swap 11 | . 6 5 Drop 15 | 1 11 3 Fire 43 | 5 11 27 Melee . | . . . Ram . | . . . Kick . | . . . Crush . | . . . Escape Stasis . | . . . Rewire . | . . . Trap . | . . . Miscellaneous . | . . . Route ------- -11/Scrapyard -10/Materials (discovered 2 exits: [*Min x2]) -10/Mines (discovered 1 exit: [*Mat]) History --------- Turn | Location | Event 21 | -11/Scrapyard | Discovered new exit (range 16) 111 | -11/Scrapyard | Entered Materials 111 | -10/Materials | Discovered new exit (range 15) 318 | -10/Materials | Build established: Mutant 420 | -10/Materials | Discovered new exit (range 14) 504 | -10/Materials | Entered Mines 877 | -10/Mines | Discovered new exit (range 8) 1006 | -10/Mines | Assembled infested the area 1054 | -10/Mines | Core integrity fell below 50% 1076 | -10/Mines | Destroyed by D-53 Grenadier with Mini Grenade Launcher Last Messages --------------- 01026_ as-90784 destroyed. 01026_ as-03436 destroyed. 01027_ as-07687 destroyed. 01036_ U-05 Engineer destroyed. 01040_ as-98069 destroyed. 01042_ as-25706 destroyed. 01042_ as-69801 destroyed. 01044_ C-30 ARC bursts open, deploying its payload. 01044_ D-53 Grenadier unfolds itself. 01050_ as-36473 destroyed. 01051_ JD-6B2(g) destroyed. 01053_ Grenade Launcher destroyed. 01056_ as-89633 destroyed. 01058_ as-29992 destroyed. 01068_ K-01 Serf destroyed. 01070_ D-53 Grenadier destroyed. 01070_ Imp. Light Cannon destroyed. 01074_ Imp. Ion Engine destroyed. 01076_ The unstable cave ceiling collapses. Map ----- +----------------------------------------------------+ | ???????????????????????????????????????? | | ???????????????????????????????????????? | | ???????????????????????????????????????? | | ??????????????????????????????#????????? | | ?????????????????????????????# ????????? | | ???????????????????????????## ???????? | | ????????????????????????####% ????????? | | ?????????????????????????%! ???????? | | ????????????????????????? ???????? | | ?????????????????????????# ????????? | | ?????????????????????????# #????????? | | ????????????????????????## #????????? | | ????????????????????????# % ##???????? | | ????????????????????????# #???????? | | ??????????????????????## !##???#### | | ????????????????????### % % #?### # | | ??????????????????### = ### | | ??????????????????# | | ??????#####???????# # | | ?????## ##???### * ######## | | ?????# #### ##??????? | | ?????# # ## #####??? | | ??????# # ### ##?? | | ???????# d #### #?? | | ???????# ## #### #?? | | ???????## @ #####?##?# #?? | | ????????### #???????# ##? | | ??????????# #???????## ## | | ??????????## ##????????# ### | | ???????????## !% ###????????## #?## | | ????????????# = #?????????## ##??#### | | ????????????# #????????## ##??????# | | ????????????# #????????# #???????? | | ????????????## ????????# ##??????? | | ?????????????# ????????# ####???? | | ?????????????# ????????## ##### | | ????????????? ?????????# | | ????????????? ?????????## #### | | ????????????? ?????????##### ##??? | | ????????????? ?????????????####???? | | ????????????? ?????????????????????? | | ???????????????????????????????????????? | | ???????????????????????????????????????? | | ???????????????????????????????????????? | | | | | | | | | | | | | +----------------------------------------------------+ Best States ------------- Heat Dissipation 25 Energy Generation 12 Energy Capacity 265 Matter Stores 300 Matter Capacity 300 Sight Range 16 Terrain Scan Range 14 Terrain Scan Density 10 Propulsion Shielding 33 Weapon Shielding 33 Evasion (%) 44 Recoil Reduction 2 Item Schematics ----------------- None Robot Schematics ------------------ None Fabricated ------------ Nothing Alien Tech Used ----------------- None Achievements -------------- None Challenges ------------ None Game ------ Seed BlastLongswordLattice Manual? 0 Play Time 00:12:35 Cumulative 96.8 hours Start 2024.05.10 @ 22:08:50 End 2024.05.10 @ 22:20:03 Sessions 1 Manual Loads 0 Difficulty Rogue Special Mode None Game No. 76 Rogue 37 Adventurer 32 Explorer 7 Win Type - Total 0 Types 0/0/0/0/0/0/0/0/0 Lore% 27 Gallery% 59 Achievement% 45 Wizard Run 0 Options --------- Layout 1 ASCII 0 Keyboard 0 Movement Numpad Keybinds 0 Fullscreen 1 Font 16/SmallcapsGlow Map View 50x35 Zoom Use 0% Tactical HUD 1 Map Filters NONE Filters NONE Steam SD RUN: afa05fc4-17e9-430b-ab35-38b7e9a6e8a0